fUST/lending_fUST_20250729
["ID","MTS","AMOUNT","RATE_DAILY","PERIOD"]
[375863443,1753764654859,-527.09,0.00021095,2]
[375863444,1753764654868,-460.0,0.00021095,2]
[375863445,1753764654879,-460.0,0.00021095,2]
[375863446,1753764654888,-460.0,0.00021095,2]
[375863447,1753764654897,-460.0,0.00021095,2]
[375863448,1753764654906,-460.0,0.00021095,2]
[375863449,1753764654915,-504.22,0.00021095,2]
[375863450,1753764654925,-460.0,0.00021095,2]
[375863451,1753764654934,-460.0,0.00021095,2]
[375863452,1753764654944,-1269.69,0.00021095,2]
[375863453,1753764654953,-1125.68,0.00021095,2]
[375863454,1753764654962,-460.0,0.00021095,2]
[375863455,1753764654972,-1596.9,0.00021095,2]
[375863456,1753764654984,-460.0,0.00021095,2]
[375863457,1753764654994,-460.0,0.00021095,2]
[375863458,1753764655003,-471.77555552,0.00021095,2]
[375863459,1753764655012,-1093.2,0.00021095,2]
[375863460,1753764655021,-460.0,0.00021095,2]
[375863461,1753764655030,-901.92,0.00021095,2]
[375863462,1753764655039,-460.0,0.00021095,2]
[375863463,1753764655049,-460.0,0.00021095,2]
[375863464,1753764655058,-460.0,0.00021095,2]
[375863465,1753764655067,-1425.95,0.00021095,2]
[375863466,1753764655077,-551.56,0.00021095,2]
[375863467,1753764655086,-460.0,0.00021095,2]
[375863468,1753764655095,-460.0,0.00021095,2]
[375863469,1753764655104,-460.0,0.00021095,2]
[375863470,1753764655114,-4145.08,0.00021095,2]
[375863471,1753764655123,-460.0,0.00021095,2]
[375863472,1753764655133,-561.7,0.00021095,2]
[375863473,1753764655143,-460.0,0.00021095,2]
[375863474,1753764655152,-649.62,0.00021095,2]
[375863475,1753764655162,-160.0,0.00021308,5]
[375863476,1753764655171,-168.0,0.00021321,2]
[375863477,1753764655181,-168.0,0.00021332,2]
[375863478,1753764655190,-695.6,0.00021343,4]
[375863479,1753764655199,-791.89605778,0.00021364,2]
[375863480,1753764655209,-1680.78725867,0.00021366,2]
[375863481,1753764655218,-500.0,0.00021366,2]
[375863482,1753764655228,-1680.78725867,0.00021366,2]
[375863483,1753764655237,-1680.78725867,0.00021366,2]
[375863484,1753764655246,-281.58478063,0.00021366,2]
[375863485,1753764655256,-1680.78725867,0.00021366,2]
[375863486,1753764655265,-1680.78725867,0.00021366,2]
[375863487,1753764655274,-1680.78725867,0.00021366,2]
[375863488,1753764655283,-1680.78725867,0.00021366,2]
[375863489,1753764655293,-1680.78725867,0.00021366,2]
[375863490,1753764655302,-1680.78725867,0.00021366,2]
[375863491,1753764655311,-1680.78725867,0.00021366,2]
[375863492,1753764655320,-1680.78725867,0.00021366,2]
[375863493,1753764655329,-1680.78725867,0.00021366,2]
[375863494,1753764655338,-1680.78725867,0.00021366,2]
[375863495,1753764655347,-1680.78725867,0.00021366,2]
[375863496,1753764655356,-1680.78725867,0.00021366,2]
[375863497,1753764655366,-1680.78725867,0.00021366,2]
[375863498,1753764655376,-1680.78725867,0.00021366,2]
[375863499,1753764655385,-1680.78725867,0.00021366,2]
[375863500,1753764655394,-1680.78725867,0.00021366,2]
[375863501,1753764655403,-1680.78725867,0.00021366,2]
[375863502,1753764655412,-460.0,0.00021369,2]
[375863503,1753764655421,-460.0,0.00021369,2]
[375863504,1753764655431,-486.47,0.00021369,2]
[375863505,1753764655441,-460.0,0.00021369,2]
[375863506,1753764655450,-460.0,0.00021369,2]
[375863507,1753764655459,-460.0,0.00021369,2]
[375863508,1753764655468,-460.0,0.00021369,2]
[375863509,1753764655478,-539.9,0.00021369,2]
[375863510,1753764655488,-460.0,0.00021369,2]
[375863511,1753764655497,-509.17402009,0.00021369,2]
[375863512,1753764655507,-565.05400722,0.00021369,2]
[375863513,1753764655516,-460.0,0.00021369,2]
[375863514,1753764655525,-460.0,0.00021369,2]
[375863515,1753764655535,-460.0,0.00021369,2]
[375863516,1753764655544,-460.0,0.00021369,2]
[375863517,1753764655554,-201.95241644,0.00021369,2]
[375863518,1753764655564,-460.0,0.00021369,2]
[375863519,1753764655574,-3128.07,0.00021369,2]
[375863520,1753764655584,-460.0,0.00021369,2]
[375863521,1753764655594,-1169.85,0.00021369,2]
[375863522,1753764655603,-460.0,0.00021369,2]
[375863523,1753764655613,-492.68,0.00021369,2]
[375863524,1753764655623,-1149.81,0.00021369,2]
[375863525,1753764655633,-460.0,0.00021369,2]
[375863526,1753764655644,-460.0,0.00021369,2]
[375863527,1753764655653,-460.0,0.00021369,2]
[375863528,1753764655663,-460.0,0.00021369,2]
[375863529,1753764655673,-1909.47,0.00021369,2]
[375863530,1753764655683,-460.0,0.00021369,2]
[375863531,1753764655693,-583.46,0.00021369,2]
[375863532,1753764655703,-1316.19,0.00021369,2]
[375863533,1753764655712,-460.0,0.00021369,2]
[375863534,1753764655722,-460.0,0.00021369,2]
[375863535,1753764655733,-652.33,0.00021369,2]
[375863536,1753764655743,-537.89,0.00021369,2]
[375863537,1753764655752,-1679.17,0.00021369,2]
[375863538,1753764655762,-377.51059027,0.00021369,2]
[375863539,1753764655775,-557.66,0.00021369,2]
[375863540,1753764655790,-460.0,0.00021369,2]
[375863541,1753764655799,-460.0,0.00021369,2]
[375863542,1753764655809,-1048.64,0.00021369,2]
[375863543,1753764655819,-460.0,0.00021369,2]
[375863544,1753764655829,-460.0,0.00021369,2]
[375863545,1753764655839,-460.0,0.00021369,2]
[375863546,1753764655849,-504.22,0.00021369,2]
[375863547,1753764655861,-460.0,0.00021369,2]
[375863548,1753764655872,-460.0,0.00021369,2]
[375863549,1753764655882,-1269.69,0.00021369,2]
[375863550,1753764655892,-1125.68,0.00021369,2]
[375863551,1753764655901,-460.0,0.00021369,2]
[375863552,1753764655911,-1596.9,0.00021369,2]
[375863553,1753764655921,-460.0,0.00021369,2]
[375863554,1753764655930,-1093.2,0.00021369,2]
[375863555,1753764655940,-901.92,0.00021369,2]
[375863556,1753764655950,-460.0,0.00021369,2]
[375863557,1753764655960,-460.0,0.00021369,2]
[375863558,1753764655969,-460.0,0.00021369,2]
[375863559,1753764655979,-460.0,0.00021369,2]
[375863560,1753764655988,-1425.95,0.00021369,2]
[375863561,1753764655998,-551.56,0.00021369,2]
[375863562,1753764656007,-460.0,0.00021369,2]
[375863563,1753764656017,-460.0,0.00021369,2]
[375863564,1753764656026,-460.0,0.00021369,2]
[375863565,1753764656036,-4145.08,0.00021369,2]
[375863566,1753764656046,-561.7,0.00021369,2]
[375863567,1753764656056,-460.0,0.00021369,2]
[375863568,1753764656066,-649.62,0.00021369,2]
[375863569,1753764656075,-200.0,0.00021377,2]
[375863570,1753764656085,-2001.0083313,0.000214,2]
[375863571,1753764656095,-613.68021079,0.000214,2]
[375863572,1753764656104,-159.090385,0.00021404,2]
[375863573,1753764656114,-587.031,0.00021418,2]
[375863574,1753764656124,-168.0,0.00021424,2]
[375863575,1753764656133,-200.0,0.00021478,15]
[375863576,1753764656143,-200.0,0.00021478,15]
[375863577,1753764656152,-200.0,0.00021478,15]
[375863578,1753764656162,-200.0,0.00021478,15]
[375863579,1753764656171,-320.0,0.00021478,15]
[375863580,1753764656181,-233.653696,0.00021499,2]
[375863581,1753764656191,-233.653696,0.00021499,2]
[375863582,1753764656200,-151.449963,0.000215,2]
[375863583,1753764656209,-233.653696,0.000215,2]
[375863584,1753764656219,-233.653696,0.000215,2]
[375863585,1753764656228,-151.0,0.000215,2]
[375863586,1753764656238,-586671.15,0.000215,2]
[375863587,1753764656248,-63721.5,0.000215,2]
[375863588,1753764656257,-34636.2621656,0.000215,2]
[375863589,1753764656328,-10343.64029833,0.000215,2]
[375863590,1753764656541,-4644.23605467,0.000215,2]
[375863591,1753764656556,-11060.22799951,0.000215,2]
[375863592,1753764656571,-9904.98551136,0.000215,2]
[375863593,1753764657662,-58626.69797053,0.000215,2]
[375863594,1753764657673,-1203.26,0.000215,2]
[375863595,1753764657684,-110128.43,0.000215,2]
[375863596,1753764657694,-2348.0,0.000215,2]
[375863597,1753764657704,-2348.0,0.000215,2]
[375863598,1753764657714,-2348.0,0.000215,2]
[375863599,1753764657724,-2348.0,0.000215,2]
[375863600,1753764657735,-2348.0,0.000215,2]
[375863601,1753764657745,-2348.0,0.000215,2]
[375863602,1753764657755,-2348.0,0.000215,2]
[375863603,1753764657765,-2348.0,0.000215,2]
[375863604,1753764657775,-2348.0,0.000215,2]
[375863605,1753764657788,-2348.0,0.000215,2]
[375863606,1753764657798,-151.0,0.000215,2]
[375863607,1753764657807,-152.537207,0.000215,2]
[375863608,1753764657817,-151.0,0.000215,2]
[375863609,1753764657828,-151.0,0.000215,2]
[375863610,1753764657838,-192.98117,0.000215,2]
[375863611,1753764657848,-192.98117,0.000215,2]
[375863612,1753764657860,-151.0,0.000215,2]
[375863613,1753764657871,-151.0,0.000215,2]
[375863614,1753764658038,-192.98117,0.000215,2]
[375863615,1753764658048,-192.98117,0.000215,2]
[375863616,1753764658058,-151.0,0.000215,2]
[375863617,1753764658067,-151.0,0.000215,2]
[375863618,1753764658077,-151.0,0.000215,2]
[375863619,1753764658088,-152.853523,0.000215,2]
[375863620,1753764658099,-151.0,0.000215,2]
[375863621,1753764658108,-151.0,0.000215,2]
[375863622,1753764658118,-151.0,0.000215,2]
[375863623,1753764658128,-151.0,0.000215,2]
[375863624,1753764658137,-174.176206,0.000215,2]
[375863625,1753764658146,-174.176206,0.000215,2]
[375863626,1753764658156,-168.0,0.00021525,2]
[375863627,1753764658167,-168.0,0.00021557,2]
[375863628,1753764658176,-460.0,0.00021643,2]
[375863629,1753764658186,-598.07,0.00021643,2]
[375863630,1753764658196,-486.47,0.00021643,2]
[375863631,1753764658205,-460.0,0.00021643,2]
[375863632,1753764658214,-460.0,0.00021643,2]
[375863633,1753764658223,-460.0,0.00021643,2]
[375863634,1753764658233,-460.0,0.00021643,2]
[375863635,1753764658243,-539.9,0.00021643,2]
[375863636,1753764658254,-529.44,0.00021643,2]
[375863637,1753764658264,-449.10715836,0.00021643,2]
[375863638,1753764658273,-460.0,0.00021643,2]
[375863639,1753764658282,-460.0,0.00021643,2]
[375863640,1753764658292,-460.0,0.00021643,2]
[375863641,1753764658301,-460.0,0.00021643,2]
[375863642,1753764658311,-3128.07,0.00021643,2]
[375863643,1753764658320,-460.0,0.00021643,2]
[375863644,1753764658329,-1169.85,0.00021643,2]
[375863645,1753764658339,-460.0,0.00021643,2]
[375863646,1753764658348,-492.68,0.00021643,2]
[375863647,1753764658357,-1149.81,0.00021643,2]
[375863648,1753764658368,-460.0,0.00021643,2]
[375863649,1753764658378,-460.0,0.00021643,2]
[375863650,1753764658387,-460.0,0.00021643,2]
[375863651,1753764658398,-460.0,0.00021643,2]
[375863652,1753764658407,-1909.47,0.00021643,2]
[375863653,1753764658419,-161.34432688,0.00021643,2]
[375863654,1753764658430,-583.46,0.00021643,2]
[375863655,1753764658440,-1316.19,0.00021643,2]
[375863656,1753764658449,-460.0,0.00021643,2]
[375863657,1753764658459,-460.0,0.00021643,2]
[375863658,1753764658469,-652.33,0.00021643,2]
[375863659,1753764658478,-537.89,0.00021643,2]
[375863660,1753764658488,-1679.17,0.00021643,2]
[375863661,1753764658497,-557.66,0.00021643,2]
[375863662,1753764658507,-460.0,0.00021643,2]
[375863663,1753764658517,-460.0,0.00021643,2]
[375863664,1753764658527,-1048.64,0.00021643,2]
[375863665,1753764658537,-460.0,0.00021643,2]
[375863666,1753764658547,-460.0,0.00021643,2]
[375863667,1753764658556,-460.0,0.00021643,2]
[375863668,1753764658565,-504.22,0.00021643,2]
[375863669,1753764658575,-460.0,0.00021643,2]
[375863670,1753764658585,-460.0,0.00021643,2]
[375863671,1753764658595,-1269.69,0.00021643,2]
[375863672,1753764658605,-1125.68,0.00021643,2]
[375863673,1753764658614,-460.0,0.00021643,2]
[375863674,1753764658624,-1596.9,0.00021643,2]
[375863675,1753764658634,-460.0,0.00021643,2]
[375863676,1753764658644,-1093.2,0.00021643,2]
[375863677,1753764658653,-901.92,0.00021643,2]
[375863678,1753764658663,-460.0,0.00021643,2]
[375863679,1753764658674,-460.0,0.00021643,2]
[375863680,1753764658683,-460.0,0.00021643,2]
[375863681,1753764658693,-1425.95,0.00021643,2]
[375863682,1753764658703,-551.56,0.00021643,2]
[375863683,1753764658712,-460.0,0.00021643,2]
[375863684,1753764658722,-460.0,0.00021643,2]
[375863685,1753764658732,-460.0,0.00021643,2]
[375863686,1753764658741,-4145.08,0.00021643,2]
[375863687,1753764658751,-561.7,0.00021643,2]
[375863688,1753764658761,-460.0,0.00021643,2]
[375863689,1753764658771,-649.62,0.00021643,2]
[375863690,1753764658783,-168.0,0.00021776,2]
[375863691,1753764658792,-168.0,0.00021793,2]
[375863692,1753764658801,-695.6,0.00021795,4]
[375863693,1753764658811,-501.68161421,0.0002186,2]
[375863694,1753764658822,-160.0,0.00021897,6]
[375863695,1753764658831,-460.0,0.00021917,2]
[375863696,1753764658841,-486.47,0.00021917,2]
[375863697,1753764658851,-460.0,0.00021917,2]
[375863698,1753764658862,-460.0,0.00021917,2]
[375863699,1753764658871,-460.0,0.00021917,2]
[375863700,1753764658881,-539.9,0.00021917,2]
[375863701,1753764658891,-460.0,0.00021917,2]
[375863702,1753764658900,-460.0,0.00021917,2]
[375863703,1753764658909,-460.0,0.00021917,2]
[375863704,1753764658918,-3128.07,0.00021917,2]
[375863705,1753764658928,-474.25,0.00021917,2]
[375863706,1753764658937,-1169.85,0.00021917,2]
[375863707,1753764658946,-281.16,0.00021917,2]
[375863708,1753764658956,-492.68,0.00021917,2]
[375863709,1753764658965,-1149.81,0.00021917,2]
[375863710,1753764658975,-460.0,0.00021917,2]
[375863711,1753764658984,-460.0,0.00021917,2]
[375863712,1753764658994,-460.0,0.00021917,2]
[375863713,1753764659005,-460.0,0.00021917,2]
[375863714,1753764659015,-1909.47,0.00021917,2]
[375863715,1753764659025,-1316.19,0.00021917,2]
[375863716,1753764659034,-583.46,0.00021917,2]
[375863717,1753764659043,-460.0,0.00021917,2]
[375863718,1753764659054,-460.0,0.00021917,2]
[375863719,1753764659064,-652.33,0.00021917,2]
[375863720,1753764659075,-537.89,0.00021917,2]
[375863721,1753764659085,-1679.17,0.00021917,2]
[375863722,1753764659094,-557.66,0.00021917,2]
[375863723,1753764659104,-460.0,0.00021917,2]
[375863724,1753764659115,-460.0,0.00021917,2]
[375863725,1753764659125,-1048.64,0.00021917,2]
[375863726,1753764659134,-460.0,0.00021917,2]
[375863727,1753764659144,-460.0,0.00021917,2]
[375863728,1753764659154,-460.0,0.00021917,2]
[375863729,1753764659164,-504.22,0.00021917,2]
[375863730,1753764659173,-460.0,0.00021917,2]
[375863731,1753764659183,-460.0,0.00021917,2]
[375863732,1753764659194,-1269.69,0.00021917,2]
[375863733,1753764659204,-1125.68,0.00021917,2]
[375863734,1753764659213,-460.0,0.00021917,2]
[375863735,1753764659224,-1596.9,0.00021917,2]
[375863736,1753764659234,-460.0,0.00021917,2]
[375863737,1753764659243,-1093.2,0.00021917,2]
[375863738,1753764659253,-901.92,0.00021917,2]
[375863739,1753764659263,-460.0,0.00021917,2]
[375863740,1753764659272,-460.0,0.00021917,2]
[375863741,1753764659282,-460.0,0.00021917,2]
[375863742,1753764659292,-1425.95,0.00021917,2]
[375863743,1753764659302,-551.56,0.00021917,2]
[375863744,1753764659311,-460.0,0.00021917,2]
[375863745,1753764659321,-460.0,0.00021917,2]
[375863746,1753764659332,-460.0,0.00021917,2]
[375863747,1753764659341,-4145.08,0.00021917,2]
[375863748,1753764659350,-561.7,0.00021917,2]
[375863749,1753764659363,-460.0,0.00021917,2]
[375863750,1753764659373,-649.62,0.00021917,2]
[375863751,1753764659382,-150.0,0.00021918,2]
[375863752,1753764659393,-150.0,0.00021918,2]
[375863753,1753764659403,-150.08466994,0.00021918,2]
[375863754,1753764659413,-2001.0083313,0.00021942,2]
[375863755,1753764659423,-152.0,0.00021981,2]
[375863756,1753764659433,-152.0,0.00021981,2]
[375863757,1753764659443,-152.0,0.00021981,2]
[375863758,1753764659453,-154.1640909,0.00021981,2]
[375863759,1753764659463,-772.4,0.00022,7]
[375863760,1753764659472,-5393.88,0.00022,7]
[375863761,1753764659483,-1628.74,0.00022,7]
[375863762,1753764659492,-21687.28,0.00022,2]
[375863763,1753764659501,-2159.0,0.00022034,2]
[375863764,1753764659512,-409.224,0.00022034,2]
[375863765,1753764659522,-425.682,0.00022034,2]
[375863766,1753764659531,-975.343,0.00022034,2]
[375863767,1753764659540,-150.0,0.00022034,2]
[375863768,1753764659550,-192.734262,0.00022035,7]
[375863769,1753764659559,-192.734262,0.00022035,7]
[375863770,1753764659568,-151.0,0.00022035,7]
[375863771,1753764659578,-151.0,0.00022035,7]
[375863772,1753764659587,-665.756305,0.00022035,7]
[375863773,1753764659596,-665.756305,0.00022035,7]
[375863774,1753764659606,-168.0,0.00022065,2]
[375863775,1753764659615,-5615.6422679,0.00022091,2]
[375863776,1753764659625,-151.0,0.00022188,7]
[375863777,1753764659635,-151.0,0.00022188,7]
[375863778,1753764659644,-460.0,0.00022191,2]
[375863779,1753764659654,-151.0,0.00022191,7]
[375863780,1753764659664,-486.47,0.00022191,2]
[375863781,1753764659674,-151.0,0.00022191,7]
[375863782,1753764659683,-238.90787899,0.00022191,2]
[375863783,1753764659693,-151.535887,0.00022191,7]
[375863784,1753764659703,-460.0,0.00022191,2]
[375863785,1753764659713,-460.0,0.00022191,2]
[375863786,1753764659723,-539.9,0.00022191,2]
[375863787,1753764659734,-151.0,0.00022191,7]
[375863788,1753764659744,-151.681157,0.00022191,7]
[375863789,1753764659754,-460.0,0.00022191,2]
[375863790,1753764659763,-224.62,0.00022191,2]
[375863791,1753764659775,-151.0,0.00022191,7]
[375863792,1753764659788,-230.579603,0.00022191,7]
[375863793,1753764659797,-230.579603,0.00022191,7]
[375863794,1753764659807,-3128.07,0.00022191,2]
[375863795,1753764659817,-1169.85,0.00022191,2]
[375863796,1753764659828,-151.0,0.00022191,7]
[375863797,1753764659839,-151.0,0.00022191,7]
[375863798,1753764659850,-492.68,0.00022191,2]
[375863799,1753764659861,-1149.81,0.00022191,2]
[375863800,1753764659872,-460.0,0.00022191,2]
[375863801,1753764659881,-460.0,0.00022191,2]
[375863802,1753764659894,-460.0,0.00022191,2]
[375863803,1753764659904,-460.0,0.00022191,2]
[375863804,1753764659916,-1909.47,0.00022191,2]
[375863805,1753764659927,-1316.19,0.00022191,2]
[375863806,1753764659937,-583.46,0.00022191,2]
[375863807,1753764659947,-460.0,0.00022191,2]
[375863808,1753764659958,-537.89,0.00022191,2]
[375863809,1753764659967,-652.33,0.00022191,2]
[375863810,1753764659978,-1679.17,0.00022191,2]
[375863811,1753764659987,-557.66,0.00022191,2]
[375863812,1753764659997,-460.0,0.00022191,2]
[375863813,1753764660007,-151.0,0.00022191,7]
[375863814,1753764660023,-151.0,0.00022191,7]
[375863815,1753764660033,-460.0,0.00022191,2]
[375863816,1753764660043,-12637.12721421,0.00022191,7]
[375863817,1753764660054,-1048.64,0.00022191,2]
[375863818,1753764660063,-460.0,0.00022191,2]
[375863819,1753764660073,-151.0,0.00022191,7]
[375863820,1753764660083,-460.0,0.00022191,2]
[375863821,1753764660092,-460.0,0.00022191,2]
[375863822,1753764660102,-504.22,0.00022191,2]
[375863823,1753764660111,-460.0,0.00022191,2]
[375863824,1753764660120,-460.0,0.00022191,2]
[375863825,1753764660130,-1269.69,0.00022191,2]
[375863826,1753764660139,-1125.68,0.00022191,2]
[375863827,1753764660148,-460.0,0.00022191,2]
[375863828,1753764660158,-1596.9,0.00022191,2]
[375863829,1753764660168,-460.0,0.00022191,2]
[375863830,1753764660176,-1093.2,0.00022191,2]
[375863831,1753764660187,-901.92,0.00022191,2]
[375863832,1753764660197,-460.0,0.00022191,2]
[375863833,1753764660207,-460.0,0.00022191,2]
[375863834,1753764660217,-460.0,0.00022191,2]
[375863835,1753764660227,-1425.95,0.00022191,2]
[375863836,1753764660238,-551.56,0.00022191,2]
[375863837,1753764660248,-460.0,0.00022191,2]
[375863838,1753764660257,-460.0,0.00022191,2]
[375863839,1753764660267,-460.0,0.00022191,2]
[375863840,1753764660276,-4145.08,0.00022191,2]
[375863841,1753764660285,-561.7,0.00022191,2]
[375863842,1753764660295,-460.0,0.00022191,2]
[375863843,1753764660304,-649.62,0.00022191,2]
[375863844,1753764660314,-695.6,0.00022247,4]
[375863845,1753764660323,-154.373696,0.0002225,2]
[375863846,1753764660332,-325.08091824,0.00022278,2]
[375863847,1753764660341,-531.486453,0.0002231,2]
[375863848,1753764660350,-233.653696,0.00022465,7]
[375863849,1753764660359,-233.653696,0.00022465,7]
[375863850,1753764660368,-460.0,0.00022465,2]
[375863851,1753764660379,-486.47,0.00022465,2]
[375863852,1753764660388,-460.0,0.00022465,2]
[375863853,1753764660397,-460.0,0.00022465,2]
[375863854,1753764660406,-539.9,0.00022465,2]
[375863855,1753764660416,-460.0,0.00022465,2]
[375863856,1753764660426,-3128.07,0.00022465,2]
[375863857,1753764660435,-1169.85,0.00022465,2]
[375863858,1753764660444,-492.68,0.00022465,2]
[375863859,1753764660453,-1149.81,0.00022465,2]
[375863860,1753764660463,-587.14022268,0.00022465,2]
[375863861,1753764660472,-460.0,0.00022465,2]
[375863862,1753764660483,-460.0,0.00022465,2]
[375863863,1753764660492,-460.0,0.00022465,2]
[375863864,1753764660502,-1909.47,0.00022465,2]
[375863865,1753764660512,-1316.19,0.00022465,2]
[375863866,1753764660521,-583.46,0.00022465,2]
[375863867,1753764660531,-460.0,0.00022465,2]
[375863868,1753764660540,-537.89,0.00022465,2]
[375863869,1753764660550,-652.33,0.00022465,2]
[375863870,1753764660559,-1679.17,0.00022465,2]
[375863871,1753764660568,-557.66,0.00022465,2]
[375863872,1753764660578,-576.15,0.00022465,2]
[375863873,1753764660588,-460.0,0.00022465,2]
[375863874,1753764660598,-1048.64,0.00022465,2]
[375863875,1753764660608,-460.0,0.00022465,2]
[375863876,1753764660617,-460.0,0.00022465,2]
[375863877,1753764660627,-460.0,0.00022465,2]
[375863878,1753764660636,-504.22,0.00022465,2]
[375863879,1753764660646,-460.0,0.00022465,2]
[375863880,1753764660656,-460.0,0.00022465,2]
[375863881,1753764660665,-1125.68,0.00022465,2]
[375863882,1753764660675,-1269.69,0.00022465,2]
[375863883,1753764660684,-460.0,0.00022465,2]
[375863884,1753764660693,-1596.9,0.00022465,2]
[375863885,1753764660706,-532.65748483,0.00022465,2]
[375863886,1753764660716,-1093.2,0.00022465,2]
[375863887,1753764660725,-901.92,0.00022465,2]
[375863888,1753764660735,-460.0,0.00022465,2]
[375863889,1753764660745,-460.0,0.00022465,2]
[375863890,1753764660755,-460.0,0.00022465,2]
[375863891,1753764660764,-1425.95,0.00022465,2]
[375863892,1753764660774,-551.56,0.00022465,2]
[375863893,1753764660786,-460.0,0.00022465,2]
[375863894,1753764660795,-460.0,0.00022465,2]
[375863895,1753764660804,-460.0,0.00022465,2]
[375863896,1753764660814,-4145.08,0.00022465,2]
[375863897,1753764660824,-561.7,0.00022465,2]
[375863898,1753764660833,-460.0,0.00022465,2]
[375863899,1753764660843,-649.62,0.00022465,2]
[375863900,1753764660853,-150.74612421,0.00022466,2]
[375863901,1753764660862,-232.05767895,0.00022466,2]
[375863902,1753764660873,-2001.0083313,0.00022483,2]
[375863903,1753764660882,-160.0,0.00022486,7]
[375863904,1753764660892,-500.0,0.00022526,2]
[375863905,1753764661063,-695.6,0.000227,5]
[375863906,1753764661074,-328.90638643,0.00022739,2]
[375863907,1753764661085,-486.47,0.00022739,2]
[375863908,1753764661094,-237.75075263,0.00022739,2]
[375863909,1753764661103,-460.0,0.00022739,2]
[375863910,1753764661113,-539.9,0.00022739,2]
[375863911,1753764661123,-460.0,0.00022739,2]
[375863912,1753764661132,-3128.07,0.00022739,2]
[375863913,1753764661141,-1169.85,0.00022739,2]
[375863914,1753764661151,-492.68,0.00022739,2]
[375863915,1753764661160,-1149.81,0.00022739,2]
[375863916,1753764661170,-460.0,0.00022739,2]
[375863917,1753764661180,-460.0,0.00022739,2]
[375863918,1753764661189,-460.0,0.00022739,2]
[375863919,1753764661199,-1909.47,0.00022739,2]
[375863920,1753764661208,-1316.19,0.00022739,2]
[375863921,1753764661217,-583.46,0.00022739,2]
[375863922,1753764661226,-460.0,0.00022739,2]
[375863923,1753764661236,-537.89,0.00022739,2]
[375863924,1753764661245,-652.33,0.00022739,2]
[375863925,1753764661255,-1679.17,0.00022739,2]
[375863926,1753764661264,-557.66,0.00022739,2]
[375863927,1753764661274,-188.13230904,0.00022739,2]
[375863928,1753764661284,-1048.64,0.00022739,2]
[375863929,1753764661293,-460.0,0.00022739,2]
[375863930,1753764661303,-460.0,0.00022739,2]
[375863931,1753764661312,-460.0,0.00022739,2]
[375863932,1753764661321,-504.22,0.00022739,2]
[375863933,1753764661330,-460.0,0.00022739,2]
[375863934,1753764661340,-460.0,0.00022739,2]
[375863935,1753764661350,-1125.68,0.00022739,2]
[375863936,1753764661359,-1269.69,0.00022739,2]
[375863937,1753764661369,-314.28671999,0.00022739,2]
[375863938,1753764661379,-1596.9,0.00022739,2]
[375863939,1753764661388,-1093.2,0.00022739,2]
[375863940,1753764661397,-901.92,0.00022739,2]
[375863941,1753764661407,-460.0,0.00022739,2]
[375863942,1753764661417,-460.0,0.00022739,2]